bitfinex-derivatives/quotes_ETHF0:USTF0_20240920
["timestamp","ask_amount","ask_price","bid_price","bid_amount"]
[1726825700390,3.07,2546.4,2546.3,0.39266]
[1726825700391,3.46266,2546.4,2546.3,0.39266]
[1726825702596,3.07,2546.4,2546.3,0.39266]
[1726825703296,3.07,2546.4,2546.2,0.39267]
[1726825703297,0.39268,2546.3,2546.2,0.39267]
[1726825704199,3.86783,2546.6,2546.5,0.39263]
[1726825704592,3.07,2546.6,2546.5,0.39263]
[1726825704794,0.39261,2546.7,2546.5,0.39263]
[1726825704988,0.39261,2546.7,2546.6,1.165]
[1726825706802,3.46259,2546.8,2546.7,0.3926]
[1726825707190,3.46259,2546.8,2546.7,0.7707]
[1726825707399,3.46259,2546.8,2546.7,0.3781]
[1726825709096,3.46259,2546.8,2546.7,0.7707]
[1726825709606,3.07,2546.8,2546.7,0.7707]
[1726825713102,3.07,2546.8,2546.7,1.75221]
[1726825713300,3.46256,2547.0,2546.9,0.39257]
[1726825713805,0.39258,2546.9,2546.8,0.39257]
[1726825716203,3.46257,2547.0,2546.9,0.39257]
[1726825717603,3.46257,2547.0,2546.8,0.39258]
[1726825717604,0.39258,2546.9,2546.8,0.39258]
[1726825718016,1.80258,2546.9,2546.8,0.39258]
[1726825718312,0.39258,2546.9,2546.8,0.39258]
[1726825720308,0.39257,2547.0,2546.9,0.39256]
[1726825720808,9.47593662,2547.6,2547.0,0.98139]
[1726825720809,3.304,2547.6,2547.0,0.98139]
[1726825721016,0.411,2547.5,2547.4,0.39249]
[1726825721306,0.4032,2547.9,2547.8,0.39243]
[1726825721616,5.531,2548.5,2548.2,0.39237]
[1726825721804,0.80336,2548.3,2547.9,0.4014]
[1726825722003,0.39237,2548.2,2548.0,1.80239]
[1726825722402,0.39237,2548.2,2548.0,4.6178]
[1726825722606,0.39239,2548.1,2548.0,4.6178]
[1726825722905,0.39239,2548.1,2547.9,0.7938]
[1726825722906,0.411,2548.3,2547.9,3.6092]
[1726825723106,0.39237,2548.2,2547.9,4.00161]
[1726825723311,0.39239,2548.1,2547.9,0.79381]
[1726825724106,0.39238,2548.2,2547.9,0.79381]
[1726825724503,0.411,2548.3,2548.0,3.06]
[1726825724704,3.2078,2548.6,2548.2,3.2078]
[1726825724906,3.60011,2548.6,2548.3,0.39235]
[1726825725124,3.2078,2548.6,2548.4,0.39234]
[1726825725306,1.21739,2548.7,2548.2,3.2078]
[1726825725507,1.21739,2548.7,2548.4,0.39233]
[1726825725717,0.4112,2548.7,2548.2,6.2678]
[1726825725905,0.78277,2548.9,2548.6,0.39231]
[1726825726110,0.39228,2548.8,2548.6,0.39231]
[1726825726316,4.5117,2549.0,2548.2,6.2678]
[1726825726512,4.90396,2549.0,2548.7,0.39229]
[1726825726712,4.5117,2549.0,2548.2,6.2678]
[1726825726911,0.3923,2548.7,2548.4,0.39233]
[1726825727113,0.3923,2548.7,2548.5,0.4033]
[1726825727614,3.06,2548.8,2548.3,0.39235]
[1726825727817,0.3893,2548.7,2548.3,0.39235]
[1726825728315,0.3777,2548.6,2548.2,3.60016]
[1726825728514,0.39234,2548.5,2548.2,3.60016]
[1726825728722,0.39235,2548.4,2548.2,3.2078]
[1726825729111,0.77043,2548.5,2548.2,3.60017]
[1726825729315,0.77043,2548.5,2548.2,3.2078]
[1726825729316,0.3781,2548.5,2548.2,3.2078]
[1726825729616,0.39234,2548.4,2548.2,3.2078]
[1726825730219,0.3781,2548.5,2548.2,3.2078]
[1726825730418,0.39234,2548.4,2548.2,3.2078]
[1726825730613,0.77043,2548.5,2548.2,3.60016]
[1726825730808,0.77043,2548.5,2548.3,0.39235]
[1726825731921,0.39234,2548.4,2548.2,3.60016]
[1726825732422,0.3781,2548.5,2548.2,3.2078]
[1726825732719,0.77043,2548.5,2548.3,0.39235]
[1726825732921,0.39234,2548.4,2548.2,3.60016]
[1726825733121,0.39234,2548.4,2548.3,0.39235]
[1726825733314,0.39234,2548.4,2548.2,3.2078]
[1726825733516,0.3781,2548.5,2548.3,0.39235]
[1726825733815,0.3781,2548.5,2548.4,0.39234]
[1726825733816,0.77042,2548.5,2548.4,0.39234]
[1726825734023,0.3781,2548.5,2548.4,0.39234]
[1726825734324,0.39232,2548.5,2548.4,0.39234]
[1726825734515,0.39232,2548.5,2548.3,0.39234]
[1726825734711,0.39232,2548.5,2548.2,3.2078]
[1726825735321,0.39232,2548.5,2548.3,0.39234]
[1726825735522,0.39232,2548.5,2548.4,0.39234]
[1726825737117,0.39233,2548.5,2548.4,0.39233]
[1726825737724,0.39233,2548.5,2548.4,0.39234]
[1726825739523,0.39234,2548.4,2548.3,0.80165]
[1726825740121,0.39233,2548.5,2548.4,0.39233]
[1726825740709,0.39234,2548.4,2548.3,0.80164]
[1726825740912,0.39234,2548.4,2548.3,0.39234]
[1726825744522,0.39237,2548.3,2548.2,0.39236]
[1726825744926,0.39237,2548.3,2548.2,0.39237]
[1726825746127,0.98094,2548.2,2547.9,0.377]
[1726825746315,0.3924,2548.0,2547.9,0.76941]
[1726825746519,0.3924,2548.0,2547.9,0.39241]
[1726825747614,0.39241,2548.0,2547.9,0.39241]
[1726825748220,0.8118,2548.1,2548.0,0.3924]
[1726825748221,1.20419,2548.1,2548.0,0.3924]
[1726825748416,0.39243,2547.8,2547.7,0.76854]
[1726825748918,0.39242,2547.9,2547.8,0.39242]
[1726825749118,0.39243,2547.9,2547.8,0.39243]
[1726825749318,0.39243,2547.8,2547.7,0.3761]
[1726825750017,0.98101,2548.0,2547.7,0.3761]
[1726825750218,0.39242,2547.9,2547.8,0.39243]
[1726825751521,0.39243,2547.8,2547.7,0.3761]
[1726825751718,0.39245,2547.7,2547.6,3.2078]
[1726825751923,4.71435,2547.7,2547.6,3.2078]
[1726825752125,4.71435,2547.7,2547.6,3.60026]
[1726825752929,4.3219,2547.7,2547.6,3.60026]
[1726825753120,4.71435,2547.7,2547.6,3.60026]
[1726825753423,4.3219,2547.7,2547.6,3.60026]
[1726825753626,4.71435,2547.7,2547.6,3.60026]
[1726825754230,0.3971,2547.7,2547.6,3.60026]
[1726825755527,0.78955,2547.7,2547.6,3.60026]
[1726825758525,2.19955,2547.7,2547.6,3.60026]
[1726825758731,2.19955,2547.7,2547.6,3.2078]
[1726825758932,7.10548,2547.7,2547.6,3.2078]
[1726825759131,0.39248,2547.5,2547.4,0.77939]
[1726825759628,0.78497,2547.6,2547.4,0.77938]
[1726825759830,0.78497,2547.6,2547.4,0.3869]
[1726825760023,0.78497,2547.6,2547.5,0.39248]
[1726825760227,0.39247,2547.6,2547.5,0.39248]
[1726825761629,0.39246,2547.6,2547.5,0.39248]
[1726825768832,8.30971,2548.3,2548.0,0.3924]
[1726825769028,3.2078,2548.3,2548.2,0.39237]
[1726825769225,0.39236,2548.3,2548.2,0.39237]
[1726825769829,0.77496,2548.3,2548.2,0.39237]
[1726825771130,0.39238,2548.2,2548.1,0.39238]
[1726825774638,3.83497,2548.3,2548.2,0.39237]
[1726825774837,0.39238,2548.2,2548.1,0.39238]
[1726825775347,3.83496,2548.3,2548.2,0.39237]
[1726825776242,0.39237,2548.2,2548.1,0.77188]
[1726825776944,3.83496,2548.3,2548.2,0.39237]
[1726825777340,0.39235,2548.4,2548.3,0.39234]
[1726825780743,0.39236,2548.4,2548.3,0.39235]
[1726825782053,0.39236,2548.3,2548.2,0.39236]
[1726825783753,0.39235,2548.4,2548.3,0.39235]
[1726825784352,0.39236,2548.3,2548.2,0.39236]
[1726825785055,0.39235,2548.4,2548.3,0.39235]
[1726825785845,0.39237,2548.3,2548.2,0.39236]
[1726825787254,1.37842,2548.5,2548.1,0.77187]
[1726825787255,0.39237,2548.2,2548.1,0.77187]
[1726825787952,0.39237,2548.2,2548.1,0.39237]
[1726825789668,0.39236,2548.4,2548.3,0.39235]
[1726825790063,0.39236,2548.4,2548.2,0.39236]
[1726825790064,0.39237,2548.3,2548.2,0.39236]
[1726825790462,0.3976,2548.5,2548.0,3.9836]
[1726825790764,0.39235,2548.4,2548.3,0.39234]
[1726825792167,1.80235,2548.4,2548.3,0.39234]
[1726825794270,0.39235,2548.4,2548.3,0.39234]
[1726825796264,2.19994,2548.5,2548.4,0.39234]
[1726825797566,1.37321,2548.4,2548.3,0.39234]
[1726825797868,0.39242,2547.9,2547.8,0.39242]
[1726825798070,1.80242,2547.9,2547.8,0.39242]
[1726825798780,1.80241,2548.0,2547.9,0.39242]
[1726825800966,0.78089,2548.1,2548.0,0.3924]
[1726825801465,0.3885,2548.1,2548.0,0.3924]
[1726825801777,1.41,2548.4,2548.2,0.39237]
[1726825802073,0.80697,2548.3,2548.2,0.39237]
[1726825802770,2.21697,2548.3,2548.2,0.39237]
[1726825802968,0.39237,2548.2,2548.1,1.17977]
[1726825803471,0.80696,2548.3,2548.2,0.39237]
[1726825804272,0.4146,2548.3,2548.1,0.7874]
[1726825804464,0.80697,2548.3,2548.2,0.39237]
[1726825805769,0.39237,2548.2,2548.1,1.17978]
[1726825806166,0.39237,2548.2,2548.1,0.7874]
[1726825806361,0.4146,2548.3,2548.1,1.17979]
[1726825806672,0.4146,2548.3,2548.1,0.7874]
[1726825806673,0.39237,2548.2,2548.1,0.7874]
[1726825807377,0.39237,2548.2,2548.1,1.17978]
[1726825807672,0.39239,2548.1,2548.0,0.39239]
[1726825808770,0.39239,2548.1,2547.9,0.3799]
[1726825808771,0.39238,2548.2,2548.1,0.39238]
[1726825812571,0.39239,2548.1,2548.0,0.39239]
[1726825812774,0.76699,2548.1,2548.0,0.39239]
[1726825812974,0.3924,2548.0,2547.9,0.79371]
[1726825813169,0.39242,2547.9,2547.7,3.2078]
[1726825813376,0.80022,2547.9,2547.7,3.60024]
[1726825813581,0.39243,2547.8,2547.7,3.60024]
[1726825814074,0.80023,2547.9,2547.7,3.60024]
[1726825814478,0.39248,2547.5,2547.4,4.23444405]
[1726825814672,0.39247,2547.6,2547.5,0.39248]
[1726825814872,0.39246,2547.7,2547.5,0.39248]
[1726825815174,0.79296,2547.7,2547.5,0.39248]
[1726825815580,0.39246,2547.6,2547.5,0.39248]
[1726825815773,0.79295,2547.7,2547.5,0.39248]
[1726825816076,0.79295,2547.7,2547.4,7.0557]
[1726825816281,0.4078,2547.9,2547.6,0.39246]
[1726825816473,0.39246,2547.7,2547.5,0.39247]
[1726825817570,0.39246,2547.6,2547.4,4.38818]
[1726825817774,0.39247,2547.6,2547.5,0.39248]
[1726825817977,0.39246,2547.7,2547.5,0.39248]
[1726825818179,0.3878,2547.6,2547.5,0.39248]
[1726825818369,0.78026,2547.6,2547.4,3.9957]
[1726825819275,0.3878,2547.6,2547.5,0.39248]
[1726825819685,0.376,2547.7,2547.6,0.39246]
[1726825819872,0.4113,2547.9,2547.6,0.39246]
[1726825820381,0.39245,2547.7,2547.6,0.39246]
[1726825820579,1.39236,2547.9,2547.5,0.39248]
[1726825820787,0.39246,2547.7,2547.5,0.39248]
[1726825821278,0.39246,2547.7,2547.6,0.39246]
[1726825821485,0.39246,2547.7,2547.5,0.39247]
[1726825821981,0.39246,2547.7,2547.6,0.39246]
[1726825822577,0.39246,2547.7,2547.5,0.39247]
[1726825822780,0.39246,2547.7,2547.6,0.39246]
[1726825823082,0.39245,2547.7,2547.6,0.39245]
[1726825824483,0.39247,2547.6,2547.5,0.39247]
[1726825824687,0.39248,2547.5,2547.4,4.38818]
[1726825824890,0.98113,2547.7,2547.4,4.38818]
[1726825825186,0.3883,2547.6,2547.5,0.39248]
[1726825825780,13.3739,2547.6,2547.0,1.02793308]
[1726825825983,4.04133,2547.2,2546.9,0.3956]
[1726825826180,0.39255,2547.1,2546.9,0.78817]
[1726825826585,0.39255,2547.1,2546.9,0.3956]
[1726825826884,3.2078,2547.4,2547.1,0.39253]
[1726825827189,0.39251,2547.3,2547.2,0.3748]
[1726825831881,0.80401,2547.3,2547.2,0.3748]
[1726825833686,3.06,2547.4,2547.2,0.3748]
[1726825833884,0.39251,2547.3,2547.2,0.3748]
[1726825844390,0.395,2547.8,2547.6,0.39246]
[1726825844690,47.605,2548.7,2547.6,0.39246]
[1726825844691,0.39236,2548.3,2548.1,0.39238]
[1726825844897,0.39235,2548.4,2548.1,0.39237]
[1726825845091,0.39235,2548.4,2548.2,0.3996]
[1726825845092,0.39235,2548.3,2548.2,0.3996]
[1726825846002,0.39239,2548.1,2548.0,3.2078]
[1726825846789,2.12233,2548.2,2547.8,0.79203]
[1726825846790,0.39241,2548.0,2547.8,0.79203]
[1726825849395,0.39241,2548.0,2547.8,0.3996]
[1726825849602,3.4524,2548.1,2547.9,0.39241]
[1726825850004,3.4524,2548.1,2547.8,0.3996]
[1726825850005,0.3924,2548.0,2547.8,0.79202]
[1726825850211,0.3924,2548.0,2547.8,0.3996]
[1726825850395,3.4524,2548.1,2547.9,0.39242]
[1726825851904,3.4524,2548.1,2548.0,0.4058]
[1726825852503,0.3924,2548.1,2548.0,0.4058]
[1726825855913,0.3924,2548.1,2548.0,0.7982]
[1726825856506,0.39235,2548.4,2548.3,0.39235]
[1726825856710,0.39234,2548.5,2548.4,0.39233]
[1726825857010,0.39234,2548.5,2548.3,0.39234]
[1726825857011,0.39232,2548.5,2548.3,0.39234]
[1726825857520,0.39232,2548.5,2548.4,0.79494]
[1726825858017,0.39232,2548.5,2548.4,0.4026]
[1726825858206,3.45232,2548.5,2548.4,0.4026]
[1726825859211,0.39235,2548.3,2548.2,0.3805]
[1726825859511,0.39237,2548.2,2548.1,0.39238]
[1726825859819,0.3809,2548.2,2548.1,0.39238]
[1726825860203,0.77327,2548.2,2548.1,0.39238]
[1726825861118,0.77327,2548.2,2548.0,1.17009]
[1726825861319,0.77327,2548.2,2548.1,0.39239]
[1726825861508,0.3809,2548.2,2548.1,0.39239]
[1726825862320,0.39244,2547.8,2547.6,3.60026]
[1726825862521,1.36185,2548.2,2547.7,0.80434]
[1726825862522,0.39243,2547.9,2547.7,0.80434]
[1726825862813,0.3809,2548.2,2547.7,0.4119]
[1726825863118,0.3809,2548.2,2547.7,7.66082]
[1726825863317,0.3809,2548.2,2548.0,0.39239]
[1726825863514,0.77327,2548.2,2548.1,1.1948]
[1726825863715,0.77327,2548.2,2548.0,0.3924]
[1726825863908,0.39239,2548.1,2547.9,0.39241]
[1726825864615,0.3809,2548.2,2547.8,1.1948]
[1726825864616,0.77328,2548.2,2548.0,0.3924]
[1726825865022,0.39239,2548.1,2547.9,0.39241]
[1726825865220,0.3809,2548.2,2547.9,0.39241]
[1726825865421,0.77328,2548.2,2548.0,0.3924]
[1726825866623,0.39239,2548.1,2547.9,0.3924]
[1726825866825,0.77328,2548.2,2547.9,0.39241]
[1726825867622,0.77328,2548.2,2547.9,0.39242]
[1726825867827,0.77328,2548.2,2548.0,0.3924]
[1726825869326,0.39239,2548.1,2547.9,0.3924]
[1726825870026,0.39239,2548.1,2547.8,1.1948]
[1726825870926,0.39237,2548.3,2548.1,0.39239]
[1726825871123,0.39237,2548.3,2548.2,1.176]
[1726825873817,0.39237,2548.3,2548.2,1.56837]
[1726825874221,0.39237,2548.3,2548.2,1.176]
[1726825874814,0.39237,2548.3,2548.2,1.56837]
[1726825875014,0.7847,2548.6,2548.2,9.14093]
[1726825875219,0.39228,2548.8,2548.7,0.39228]
[1726825875420,0.39229,2548.7,2548.6,0.7919]
[1726825875629,0.39229,2548.8,2548.7,0.39229]
[1726825875823,0.39229,2548.7,2548.6,1.18419]
[1726825878626,0.385,2549.1,2548.7,0.98074]
[1726825878929,0.39222,2549.2,2549.1,0.39222]
[1726825879119,0.39223,2549.1,2549.0,0.39223]
[1726825880031,0.78213,2549.2,2549.1,0.39223]
[1726825880531,0.39224,2549.1,2549.0,0.39224]
[1726825881323,0.39225,2549.0,2548.9,0.39225]
[1726825881528,1.37046,2549.2,2549.0,0.39224]
[1726825881529,0.39224,2549.1,2549.0,0.39224]
[1726825882534,0.78213,2549.2,2549.1,0.39223]
[1726825882746,0.78213,2549.2,2549.0,0.39224]
[1726825882747,0.39225,2549.1,2549.0,0.39224]
[1726825883435,0.78213,2549.2,2549.1,0.39223]
[1726825883734,0.39224,2549.1,2549.0,0.39224]
[1726825886337,0.39222,2549.2,2549.1,0.39222]
[1726825888144,1.16702,2549.2,2549.1,0.39222]
[1726825888839,0.39222,2549.2,2549.1,0.39222]
[1726825892045,0.39223,2549.2,2549.1,0.39223]
[1726825893134,0.39225,2549.0,2548.8,3.2078]
[1726825893336,1.75366,2548.9,2548.6,0.7919]
[1726825893536,0.39229,2548.7,2548.6,1.18419]
[1726825893745,0.39229,2548.8,2548.6,1.18419]
[1726825894250,1.55917,2548.9,2548.6,0.7919]
[1726825894545,1.55917,2548.9,2548.7,0.39228]
[1726825894546,0.39228,2548.8,2548.7,0.39228]
[1726825895142,0.39229,2548.8,2548.7,0.39229]
[1726825895543,3.06,2548.8,2548.5,0.394]
[1726825895742,0.39232,2548.5,2548.4,3.2078]
[1726825896139,0.77992,2548.5,2548.4,3.2078]
[1726825896347,0.39235,2548.4,2548.3,0.39235]
[1726825896548,1.53164,2548.5,2548.2,0.3955]
[1726825896758,1.53164,2548.5,2548.4,0.39234]
[1726825897239,0.39235,2548.3,2548.2,0.3955]
[1726825898349,0.39235,2548.3,2548.2,0.78787]
[1726825898538,1.53164,2548.5,2548.2,0.3955]
[1726825898743,0.39234,2548.4,2548.3,0.39235]
[1726825898944,1.1393,2548.5,2548.2,0.3955]
[1726825899151,0.39235,2548.4,2548.2,0.78786]
[1726825899853,0.39234,2548.4,2548.2,0.3955]
[1726825900048,0.39235,2548.3,2548.2,0.78786]
[1726825900552,0.39235,2548.4,2548.2,0.78786]
[1726825901049,0.39235,2548.3,2548.2,0.78786]
[1726825901751,0.39235,2548.4,2548.3,0.39235]
[1726825901947,0.39235,2548.3,2548.2,0.78786]
[1726825902445,0.39235,2548.4,2548.3,0.39235]
[1726825902750,0.39235,2548.3,2548.2,0.3955]
[1726825904449,0.39235,2548.3,2548.2,0.78787]
[1726825908049,3.38454634,2549.0,2548.7,0.39229]
[1726825908050,0.39229,2548.8,2548.7,0.39229]
[1726825908548,0.3747,2548.9,2548.5,4.43971]
[1726825908851,0.3747,2548.9,2548.7,0.39228]
[1726825908852,0.39228,2548.8,2548.7,0.39228]
[1726825911554,0.76697,2548.9,2548.8,0.39228]
[1726825912452,0.3747,2548.9,2548.8,0.39228]
[1726825912751,0.98038,2549.7,2549.3,0.39219]
[1726825912956,0.3851,2549.8,2549.4,3.6161]
[1726825913152,0.39217,2549.5,2549.4,0.8171]
[1726825913843,0.39217,2549.5,2549.4,1.20929]
[1726825914249,0.39217,2549.6,2549.4,1.20929]
[1726825914648,0.387,2549.5,2549.4,0.8171]
[1726825914853,0.77918,2549.5,2549.3,0.39219]
[1726825915054,0.39219,2549.4,2549.2,0.3965]
[1726825915357,0.77918,2549.5,2549.3,0.39219]
[1726825915857,0.77918,2549.5,2549.3,0.3922]
[1726825916653,0.77918,2549.5,2549.3,0.39219]
[1726825917048,0.77918,2549.5,2549.2,0.3965]
[1726825917049,0.3922,2549.4,2549.2,0.78871]
[1726825917248,0.3922,2549.4,2549.2,0.39221]
[1726825917447,0.3993,2549.4,2549.1,0.8106]
[1726825917659,0.39222,2549.2,2549.1,0.8106]
[1726825918658,0.39222,2549.2,2549.0,0.39224]
[1726825918954,0.79153,2549.1,2548.9,3.98825]
[1726825919658,0.79153,2549.1,2549.0,0.39225]
[1726825919851,0.79153,2549.1,2548.9,3.98825]
[1726825920052,0.79153,2549.1,2548.9,3.98826]
[1726825920053,0.79155,2549.1,2548.9,3.98826]
[1726825920262,0.79155,2549.1,2548.9,3.596]
[1726825920459,0.79155,2549.1,2549.0,0.39225]
[1726825920853,0.79155,2549.1,2548.9,3.98825]
[1726825921058,0.79155,2549.1,2549.0,0.39225]
[1726825921362,0.79155,2549.1,2548.9,3.98825]
[1726825922058,0.79155,2549.1,2549.0,0.39225]
[1726825922446,0.79155,2549.1,2548.9,3.596]
[1726825922447,0.79155,2549.1,2548.9,3.98825]
[1726825922651,0.39225,2549.0,2548.9,3.596]
[1726825922852,0.39225,2549.0,2548.9,3.98826]
[1726825923265,0.79154,2549.1,2548.9,3.98826]
[1726825923458,0.79154,2549.1,2549.0,0.39225]
[1726825923653,0.79154,2549.1,2548.9,3.596]
[1726825923654,0.3993,2549.1,2548.9,3.98825]
[1726825924161,0.79154,2549.1,2549.0,0.39225]
[1726825924360,0.79154,2549.1,2548.9,3.596]
[1726825924361,0.79154,2549.1,2548.9,3.98825]
[1726825924561,0.39225,2549.0,2548.9,3.596]
[1726825924750,0.39225,2549.0,2548.9,3.98826]
[1726825925165,0.79154,2549.1,2548.9,3.596]
[1726825925355,0.39225,2549.0,2548.9,3.98826]
[1726825926259,0.79154,2549.1,2548.9,3.98826]
[1726825926456,0.39225,2549.0,2548.9,3.596]
[1726825926657,0.39226,2548.9,2548.8,0.41]
[1726825926959,0.39229,2548.7,2548.6,0.4141]
[1726825927157,0.98071,2548.8,2548.4,3.60013]
[1726825927158,1.37881,2548.8,2548.4,4.40493]
[1726825927349,1.37881,2548.8,2548.2,0.4143]
[1726825927350,0.39233,2548.5,2548.2,0.80666]
[1726825927552,0.39233,2548.5,2548.3,0.8048]
[1726825927864,0.39233,2548.5,2548.3,1.19715]
[1726825928650,3.4398,2548.6,2548.3,0.8048]
[1726825929062,0.39234,2548.4,2548.3,0.8048]
[1726825929261,0.39233,2548.5,2548.3,0.8048]
[1726825929661,3.4398,2548.6,2548.3,0.8048]
[1726825929964,0.39232,2548.5,2548.3,0.8048]
[1726825930461,0.39234,2548.4,2548.3,0.8048]
[1726825930662,0.39233,2548.5,2548.3,0.8048]
[1726825931261,0.39234,2548.4,2548.3,0.8048]
[1726825931457,3.4398,2548.6,2548.1,3.60018]
[1726825931653,4.4206,2548.6,2548.0,1.14989]
[1726825931852,0.98082,2548.5,2548.0,1.14989]
[1726825932166,0.39234,2548.4,2548.1,0.39238]
[1726825932464,0.39234,2548.4,2548.0,0.7575]
[1726825932767,0.39234,2548.4,2548.1,0.39239]
[1726825934159,0.39236,2548.3,2548.0,0.7575]
[1726825934364,0.39236,2548.3,2548.1,0.39238]
[1726825935567,0.39235,2548.4,2548.2,0.39237]
[1726825935766,4.4206,2548.6,2548.1,0.39238]
[1726825935965,4.4206,2548.6,2548.0,0.7575]
[1726825936165,0.39235,2548.4,2548.2,0.39237]
[1726825936662,0.98082,2548.5,2548.0,0.7575]
[1726825936868,0.39236,2548.3,2548.1,0.39238]
[1726825937267,0.77845,2548.4,2548.2,0.39237]
[1726825937466,0.39235,2548.3,2548.2,0.39237]
[1726825937667,0.39235,2548.3,2548.1,0.39238]
[1726825938164,0.3861,2548.4,2548.1,0.39238]
[1726825938363,0.39236,2548.3,2548.1,0.39238]
[1726825939172,0.39237,2548.2,2548.1,0.39238]
[1726825939373,0.79597,2548.2,2548.1,0.39238]
[1726825940173,0.4036,2548.2,2548.0,0.7575]
[1726825940369,0.79598,2548.2,2548.0,1.1499]
[1726825940571,0.79598,2548.2,2548.1,0.39239]
[1726825940772,0.79598,2548.2,2548.0,0.7575]
[1726825940972,0.79598,2548.2,2548.1,0.39239]
[1726825942074,0.4036,2548.2,2548.1,0.39239]
[1726825942469,0.79597,2548.2,2548.1,0.39239]
[1726825942682,0.39236,2548.3,2548.1,0.39239]
[1726825943169,0.39237,2548.2,2548.1,0.39239]
[1726825943872,0.39236,2548.3,2548.1,0.39239]
[1726825945077,0.39238,2548.2,2548.0,1.14989]
[1726825945373,0.39238,2548.2,2548.1,0.39239]
[1726825946469,0.39237,2548.2,2548.1,0.39238]
[1726825946675,0.39239,2548.1,2548.0,0.7575]
[1726825947277,0.39239,2548.1,2548.0,1.1499]
[1726825948072,0.39239,2548.1,2548.0,0.7575]
[1726825948266,0.39239,2548.1,2548.0,1.1499]
[1726825948471,0.39239,2548.1,2548.0,0.7575]
[1726825948876,2.78336,2548.1,2548.0,0.7575]
[1726825950078,1.37336,2548.1,2548.0,0.7575]
[1726825952282,3.16346,2548.1,2548.0,0.7575]
[1726825953078,0.39243,2547.8,2547.7,3.2078]
[1726825953271,2.78352,2547.8,2547.7,0.4027]
[1726825954177,0.98114,2547.7,2547.3,0.3925]
[1726825954383,0.39248,2547.5,2547.4,0.3806]
[1726825954579,1.80248,2547.5,2547.4,0.3806]
[1726825954783,1.80248,2547.5,2547.4,0.77309]
[1726825954982,1.80248,2547.5,2547.4,0.3806]
[1726825955483,0.39248,2547.5,2547.4,0.3806]
[1726825956984,1.41,2547.6,2547.4,0.77309]
[1726825957180,0.39244,2547.8,2547.6,0.39246]
[1726825957483,0.39244,2547.8,2547.7,1.2011]
[1726825959078,1.37353,2547.8,2547.7,1.2011]
[1726825959278,1.37353,2547.8,2547.7,0.7876]
[1726825959487,0.39246,2547.6,2547.5,0.80598]
[1726825959785,0.39246,2547.6,2547.5,1.20228]
[1726825960290,0.39246,2547.7,2547.5,1.20228]
[1726825960482,0.39245,2547.7,2547.5,1.20228]
[1726825963685,0.39246,2547.6,2547.5,0.8098]
[1726825966289,0.39249,2547.4,2547.3,0.4124]
[1726825967598,7.96685,2547.4,2546.9,0.39257]
[1726825967796,0.39257,2547.0,2546.9,1.19857]
[1726825968092,0.39257,2547.0,2546.9,0.806]
[1726825968393,3.45255,2547.1,2546.9,1.19856]
[1726825968588,0.39255,2547.0,2546.9,1.19856]
[1726825968794,3.85935,2547.1,2546.9,1.19856]
[1726825969099,0.39255,2547.0,2546.9,1.19856]
[1726825970597,0.39255,2547.0,2546.9,0.806]
[1726825970801,0.39255,2547.0,2546.9,1.19857]
[1726825971094,0.39255,2547.0,2546.9,0.806]
[1726825971095,4.43394,2547.0,2546.9,0.806]
[1726825971297,0.39259,2546.8,2546.7,3.60039]
[1726825971501,0.39259,2546.8,2546.7,3.2078]
[1726825972293,4.43406,2546.8,2546.7,3.2078]
[1726825972495,0.39262,2546.6,2546.5,1.2165]
[1726825972884,0.77831,2546.7,2546.5,1.60912]
[1726825974900,0.77831,2546.7,2546.6,0.39262]
[1726825976599,0.3857,2546.7,2546.6,0.39262]
[1726825976994,0.77832,2546.7,2546.6,0.39262]
[1726825977596,0.3926,2546.8,2546.7,0.3926]
[1726825977798,0.39262,2546.7,2546.6,0.39262]
[1726825980700,0.98154,2546.7,2546.3,3.2078]
[1726825980895,0.98154,2546.7,2546.5,0.39263]
[1726825980896,0.4139,2546.6,2546.5,0.39263]
[1726825981304,0.3926,2546.8,2546.7,0.39259]
[1726825982512,0.77239,2546.9,2546.8,0.39259]
[1726825982811,0.3926,2546.8,2546.7,0.39259]
[1726825985900,1.8026,2546.8,2546.7,0.39259]
[1726825990910,1.80259,2546.8,2546.7,0.39259]
[1726825991112,0.39257,2547.0,2546.9,0.39255]
[1726825991303,5.01035,2547.1,2547.0,0.39255]
[1726825993605,1.37396,2547.0,2546.9,0.39256]
[1726825993806,0.39258,2546.9,2546.8,0.39257]
[1726825994010,2.17748,2546.9,2546.8,0.39257]
[1726825995903,3.82748,2546.9,2546.8,0.39257]
[1726825997717,0.3926,2546.8,2546.7,0.3926]
[1726825999013,3.82749,2546.9,2546.8,0.39259]
[1726826000117,0.3926,2546.8,2546.7,0.39259]
[1726826003824,0.39261,2546.7,2546.6,0.39261]
[1726826004026,3.83001,2546.7,2546.6,0.39261]
[1726826005422,0.39263,2546.5,2546.4,0.80504]
[1726826005620,3.45263,2546.5,2546.4,0.80504]
[1726826006419,3.06,2546.5,2546.4,0.80504]
[1726826007222,0.39262,2546.6,2546.5,0.39263]
[1726826010943,0.39263,2546.6,2546.5,0.39263]
[1726826013036,0.39263,2546.5,2546.4,0.4124]
[1726826013342,0.39262,2546.6,2546.5,0.39262]
[1726826014227,0.39262,2546.6,2546.4,0.4124]
[1726826014228,0.39263,2546.5,2546.4,0.80504]